bitfinex-derivatives/quotes_ETHF0:USTF0_20260303
["timestamp","ask_amount","ask_price","bid_price","bid_amount"]
[1772581627492,11.38739055,1987.5,1986.8,4.83450974]
[1772581627689,4.86560585,1987.5,1986.8,4.83450974]
[1772581628989,13.69108917,1987.8,1987.0,4.82977277]
[1772581628990,4.86560585,1987.7,1987.0,4.82977277]
[1772581629193,11.32411172,1987.6,1987.0,4.82977277]
[1772581629394,6.45850587,1987.5,1987.0,4.82977277]
[1772581630194,4.86560585,1987.6,1987.0,4.82977277]
[1772581630394,4.86560585,1987.8,1987.0,4.82977277]
[1772581630693,6.45765499,1987.7,1987.0,4.82977277]
[1772581631594,11.32326084,1987.7,1987.0,4.82977277]
[1772581631795,6.45765499,1987.6,1987.0,4.82977277]
[1772581632696,4.86560585,1987.7,1987.0,4.82977277]
[1772581634490,4.86560585,1987.7,1987.2,4.82977277]
[1772581634696,4.87049549,1987.9,1987.2,4.82977277]
[1772581634895,11.25982504,1987.8,1987.2,4.82977277]
[1772581635094,4.86560585,1987.7,1987.2,4.82977277]
[1772581636696,4.86560585,1987.7,1987.1,0.25161]
[1772581637092,4.86560585,1987.7,1987.1,5.08138277]
[1772581644193,4.86560585,1987.7,1987.0,4.38292142]
[1772581644497,4.86560585,1987.7,1986.9,4.38292142]
[1772581651704,4.39254622,1987.9,1986.9,4.38292142]
[1772581651909,4.38765658,1987.7,1987.0,4.38292142]
[1772581653109,4.38765658,1987.7,1987.3,4.38292142]
[1772581654111,4.38765658,1987.7,1987.2,0.25159]
[1772581654112,4.38765658,1987.7,1987.2,4.63451142]
[1772581654815,4.38765658,1987.7,1987.2,0.25159]
[1772581655414,4.38765658,1987.7,1987.0,4.38292142]
[1772581659615,4.39254622,1987.9,1987.2,4.38292142]
[1772581659915,10.68151519,1987.8,1987.2,4.38292142]
[1772581660121,4.38765658,1987.8,1987.2,4.38292142]
[1772581661725,4.39254622,1987.9,1987.2,4.38292142]
[1772581661919,6.29302186,1987.8,1987.2,4.38292142]
[1772581663020,10.68067844,1987.8,1987.2,4.38292142]
[1772581663222,4.38765658,1987.8,1987.2,4.38292142]
[1772581663923,0.00488964,1987.9,1987.4,4.38292142]
[1772581664130,6.29737418,1987.9,1987.4,4.38292142]
[1772581664321,10.68503076,1987.9,1987.4,4.38292142]
[1772581664622,4.39254622,1987.9,1987.4,4.38292142]
[1772581666325,4.39254622,1987.9,1987.3,4.63451142]
[1772581681433,4.18907572,1987.7,1987.1,4.4565158]
[1772581681633,4.18907572,1987.7,1987.0,13.9025158]
[1772581686344,4.18907572,1987.7,1987.1,4.4565158]
[1772581686543,4.19396536,1987.9,1987.3,4.4565158]
[1772581686737,10.48129457,1987.8,1987.3,4.4565158]
[1772581686943,4.18907572,1987.8,1987.3,4.4565158]
[1772581688638,4.19396536,1987.9,1987.3,4.4565158]
[1772581689644,4.18907572,1988.0,1987.5,4.4565158]
[1772581690748,4.19303003,1988.0,1987.5,4.4565158]
[1772581695951,8.12489173,1988.6,1987.5,4.4565158]
[1772581695952,4.18907572,1988.4,1987.7,4.4565158]
[1772581696249,4.18907572,1988.6,1987.9,4.4565158]
[1772581696852,4.19349603,1988.6,1987.9,4.4565158]
[1772581697754,0.00442031,1988.6,1988.1,4.4565158]
[1772581697953,4.19349603,1988.6,1988.1,4.4565158]
[1772581698755,4.22809487,1988.7,1988.1,4.4565158]
[1772581699755,4.23331782,1988.7,1988.1,4.4565158]
[1772581701554,0.00522295,1988.7,1988.1,4.4565158]
[1772581701858,4.35869883,1988.9,1988.3,4.3106949]
[1772581702956,4.36359442,1988.9,1988.3,4.31588326]
[1772581705558,0.00489559,1988.9,1988.3,4.31588326]
[1772581706463,4.36359442,1988.9,1988.5,4.3106949]
[1772581708866,4.35869883,1989.1,1988.5,4.3106949]
[1772581709866,4.36503863,1989.1,1988.5,4.3106949]
[1772581715473,4.35869883,1989.0,1988.4,4.5621449]
[1772581722078,4.35869883,1989.0,1988.4,0.25145]
[1772581722279,4.35869883,1989.0,1988.4,4.5621449]
[1772581724781,4.36503863,1989.1,1988.4,4.5621449]
[1772581725180,10.63196868,1989.0,1988.4,4.5621449]
[1772581725381,4.35869883,1989.0,1988.4,4.5621449]
[1772581727884,4.36503863,1989.1,1988.4,4.5621449]
[1772581728075,6.27575457,1989.0,1988.4,4.5621449]
[1772581728988,6.27575457,1989.0,1988.6,4.14350761]
[1772581729187,0.0063398,1989.1,1988.6,4.14350761]
[1772581729387,6.28430036,1989.1,1988.6,4.14350761]
[1772581729588,4.17729616,1989.1,1988.6,4.14350761]
[1772581734588,4.17095636,1988.9,1988.5,13.63150761]
[1772581734978,4.17095636,1988.9,1988.5,9.488]
[1772581735385,4.17095636,1988.9,1988.6,4.14350761]
[1772581735585,4.17095636,1989.0,1988.6,4.14350761]
[1772581736387,4.17095636,1989.0,1988.5,9.488]
[1772581736589,4.17095636,1989.0,1988.6,4.14350761]
[1772581737388,4.17729616,1989.1,1988.6,4.14350761]
[1772581737786,0.0063398,1989.1,1988.6,4.14350761]
[1772581738181,4.17729616,1989.1,1988.6,4.14350761]
[1772581740692,4.17095636,1989.3,1988.8,4.14350761]
[1772581741794,4.17516912,1989.3,1988.8,4.14350761]
[1772581748200,0.00421276,1989.3,1988.8,4.14350761]
[1772581748702,10.44159088,1989.3,1988.8,4.14350761]
[1772581748902,4.17516912,1989.3,1988.8,4.14350761]
[1772581752306,4.17516912,1989.3,1988.9,0.25138]
[1772581753106,4.17516912,1989.3,1988.9,4.39488761]
[1772581753307,4.17516912,1989.3,1988.9,0.25138]
[1772581755612,4.17516912,1989.3,1988.9,4.39488761]
[1772581756010,4.17516912,1989.3,1988.9,0.25138]
[1772581759114,4.17516912,1989.3,1988.9,4.23759846]
[1772581759713,4.17516912,1989.3,1988.9,0.25138]
[1772581760916,0.00421276,1989.3,1988.9,4.23759846]
[1772581761115,6.26555556,1989.3,1988.9,4.23759846]
[1772581761312,10.28609676,1989.3,1988.9,4.23759846]
[1772581761518,4.02475396,1989.3,1988.9,4.23759846]
[1772581761718,4.0205412,1989.7,1989.2,3.98621846]
[1772581761914,8.23963037,1989.9,1989.2,3.98621846]
[1772581762219,6.26412161,1989.8,1989.2,3.98621846]
[1772581762615,6.27058903,1989.8,1989.2,3.98621846]
[1772581764312,0.00646742,1989.8,1989.2,3.98621846]
[1772581765317,0.00646742,1989.8,1989.3,1.8204688]
[1772581765521,4.0205412,1990.1,1989.4,3.98621846]
[1772581765714,10.27810037,1990.0,1989.4,3.98621846]
[1772581765914,4.0205412,1990.1,1989.6,3.98621846]
[1772581766613,4.02652521,1990.1,1989.6,3.98621846]
[1772581767713,0.00598401,1990.1,1989.8,3.98621846]
[1772581767914,4.21908917,1990.5,1989.8,3.98621846]
[1772581768121,4.0205412,1990.3,1989.8,3.98621846]
[1772581768922,4.02523864,1990.3,1989.8,3.99131207]
[1772581772029,4.02523864,1990.3,1989.8,0.00509361]
[1772581774930,4.0205412,1989.9,1988.6,3.98621846]
[1772581775228,4.0205412,1989.9,1988.8,3.98621846]
[1772581775229,4.0205412,1989.7,1988.8,3.98621846]
[1772581776023,4.0205412,1989.7,1988.9,4.23759846]
[1772581777228,4.0205412,1989.7,1987.8,3.98621846]
[1772581777229,4.0205412,1988.9,1987.8,3.98621846]
[1772581777431,4.0205412,1988.4,1987.4,3.98621846]
[1772581777625,4.0205412,1988.1,1987.4,3.98621846]
[1772581777824,4.0205412,1988.1,1987.3,9.535]
[1772581777825,4.0205412,1988.1,1987.2,3.98621846]
[1772581778021,4.0205412,1987.8,1987.2,0.00555795]
[1772581782227,4.0205412,1987.8,1987.2,3.99177641]
[1772581783534,4.0205412,1987.8,1986.9,0.25163]
[1772581783535,4.0205412,1987.8,1986.9,3.98621846]
[1772581783735,4.0205412,1987.8,1986.8,3.98621846]
[1772581784627,4.0205412,1987.8,1986.8,3.9911753]
[1772581787233,9.94130997,1988.1,1987.0,3.98621846]
[1772581787234,3.99277289,1988.1,1987.0,3.98621846]
[1772581789539,3.63188457,1988.1,1987.2,3.91541165]
[1772581789741,0.00530997,1988.1,1987.4,3.91541165]
[1772581790537,3.6265746,1988.3,1987.4,3.91541165]
[1772581791836,3.63105276,1988.3,1987.4,3.91541165]
[1772581792933,3.63105276,1988.3,1987.6,3.91541165]
[1772581797242,0.00447816,1988.3,1987.6,3.91541165]
[1772581797740,3.63105276,1988.3,1987.6,3.91541165]
[1772581800344,0.00447816,1988.3,1987.8,3.91541165]
[1772581800548,3.6265746,1988.6,1987.8,3.91541165]
[1772581800752,3.6265746,1988.6,1987.9,3.91541165]
[1772581801050,3.6265746,1989.2,1987.9,4.16692165]
[1772581801247,3.6265746,1989.1,1988.3,3.91541165]
[1772581801551,3.63032041,1989.1,1988.3,3.92095705]
[1772581805248,6.83827513,1989.0,1988.5,3.91541165]
[1772581805444,0.00374581,1989.1,1988.3,0.0055454]
[1772581805445,0.00374581,1989.1,1988.7,3.91541165]
[1772581805751,10.47188024,1989.1,1988.7,3.91541165]
[1772581806050,3.63032041,1989.1,1988.7,3.91541165]
[1772581808554,3.63032041,1989.1,1988.4,3.91541165]
[1772581809550,6.18506,1988.6,1986.7,3.91541165]
[1772581809750,6.18506,1988.6,1986.5,3.91541165]
[1772581809751,10.65695917,1988.2,1986.5,3.91541165]
[1772581809954,4.21908917,1987.9,1986.5,3.91541165]
[1772581810555,4.21908917,1987.9,1986.5,3.92075302]
[1772581810854,0.04177694,1987.8,1986.5,3.92075302]
[1772581812452,0.36700128,1987.7,1986.5,3.92075302]
[1772581812654,0.37321431,1987.7,1986.5,3.92075302]
[1772581813351,0.12226237,1987.6,1986.5,3.92075302]
[1772581813555,0.12226237,1987.6,1986.7,3.98667872]
[1772581819262,0.14247228,1987.5,1986.7,3.98667872]
[1772581828276,6.71962059,1987.7,1986.7,3.98667872]
[1772581828277,0.27463203,1987.3,1986.7,3.98667872]
[1772581828478,0.27463203,1987.3,1986.5,3.97076958]
[1772581828781,0.27349016,1987.1,1986.3,3.96542821]
[1772581829782,0.27349016,1987.1,1986.3,3.9707679]
[1772581831883,0.11787908,1986.9,1986.3,3.9707679]
[1772581832085,0.11787908,1986.7,1986.1,3.96542821]
[1772581832284,0.11787908,1986.7,1985.6,3.96542821]
[1772581833285,0.11787908,1986.7,1985.6,3.9701122]
[1772581835381,10.40851917,1987.2,1985.6,3.9701122]
[1772581835382,4.21908917,1987.2,1985.6,3.9701122]
[1772581835581,0.25159,1987.3,1986.0,4.03098612]
[1772581835778,2.98905726,1987.3,1986.0,4.03098612]
[1772581836278,2.73746726,1987.0,1986.0,4.03098612]
[1772581837487,6.46416679,1986.9,1986.0,4.03098612]
[1772581838389,6.46416679,1986.8,1986.0,4.03098612]
[1772581838589,6.95655643,1987.0,1986.0,4.03098612]
[1772581838788,6.47496879,1986.9,1986.0,4.03098612]
[1772581839290,6.48942804,1986.8,1986.0,4.03098612]
[1772581839589,6.48942804,1986.7,1986.0,4.03098612]
[1772581839788,4.21908917,1986.9,1986.0,4.03098612]
[1772581841387,6.48966669,1986.8,1986.0,4.03098612]
[1772581841589,6.48966669,1986.7,1986.0,4.03098612]
[1772581841787,4.21908917,1987.0,1986.0,4.03098612]
[1772581843190,10.70976539,1987.0,1986.0,4.03098612]
[1772581844086,10.70976539,1987.0,1985.8,4.29551014]
[1772581844291,2.73746726,1986.4,1985.6,4.04842413]
[1772581844492,6.48521246,1986.3,1985.6,4.04842413]
[1772581844694,6.48521246,1986.2,1985.6,4.04842413]
[1772581844993,0.00543051,1986.3,1985.6,4.04842413]
[1772581847398,3.97555218,1986.3,1985.6,4.04842413]
[1772581851401,3.94491488,1986.3,1985.6,4.04842413]
[1772581851801,0.00543051,1986.3,1985.6,4.04842413]
[1772581852500,3.94491488,1986.3,1985.6,4.04842413]
[1772581852700,0.00543051,1986.3,1985.6,4.04842413]
[1772581852900,3.94491488,1986.3,1985.6,4.04842413]
[1772581855102,0.00543051,1986.3,1985.6,4.04842413]
[1772581855298,3.93948437,1986.1,1985.2,3.91028547]
[1772581856303,3.93948437,1986.1,1985.2,3.9139594]
[1772581857205,3.94491488,1986.3,1985.2,3.9139594]
[1772581857405,3.93948437,1986.1,1985.2,3.9139594]
[1772581858008,10.25228255,1986.0,1985.2,3.9139594]
[1772581858208,3.93948437,1986.0,1985.2,3.9139594]
[1772581861202,3.93948437,1986.2,1985.2,3.9139594]
[1772581861407,10.25709343,1986.1,1985.2,3.9139594]
[1772581861607,6.31760906,1986.0,1985.2,3.9139594]
[1772581861804,10.25709343,1986.0,1985.2,3.9139594]
[1772581862004,3.93948437,1986.0,1985.2,3.9139594]
[1772581863412,3.93948437,1985.8,1985.0,3.91028547]
[1772581863606,3.93948437,1985.6,1984.9,3.91028547]
[1772581863804,3.93948437,1985.4,1984.4,3.91028547]
[1772581864510,3.93948437,1985.4,1984.4,3.91516893]
[1772581864713,3.93948437,1985.4,1984.6,3.91028547]
[1772581865007,3.93948437,1985.6,1984.6,3.91028547]
[1772581865203,3.93948437,1985.7,1984.8,3.91028547]
[1772581865401,6.30846994,1985.6,1984.8,3.91028547]
[1772581866812,3.93948437,1985.7,1984.8,3.91028547]
[1772581867014,3.93948437,1985.5,1984.8,3.91028547]
[1772581870811,4.47087917,1985.8,1984.8,3.91028547]
[1772581870812,3.93948437,1985.7,1984.8,3.91028547]
[1772581871114,3.93948437,1985.5,1984.8,3.91028547]
[1772581871506,3.93948437,1985.7,1984.8,3.91028547]
[1772581871709,6.30783818,1985.6,1984.8,3.91028547]
[1772581871905,10.24732255,1985.6,1984.8,3.91028547]
[1772581872106,3.93948437,1985.6,1984.8,3.91028547]
[1772581877520,10.25315506,1985.5,1984.8,3.91028547]
[1772581877721,3.93948437,1985.5,1984.8,3.91028547]
[1772581879421,3.79476752,1985.7,1984.8,3.91028547]
[1772581879621,3.79476752,1985.5,1984.8,3.91028547]
[1772581880824,3.79476752,1985.3,1984.8,3.91028547]
[1772581881526,3.79476752,1985.7,1984.8,3.91028547]
[1772581881726,3.79476752,1985.5,1984.8,3.91028547]
[1772581883127,3.79476752,1985.5,1985.0,3.71889767]
[1772581883929,3.79476752,1985.7,1985.0,3.71889767]
[1772581884125,10.11743285,1985.6,1985.0,3.71889767]
[1772581884324,3.79476752,1985.6,1985.0,3.71889767]
[1772581885329,10.12263122,1985.5,1985.0,3.71889767]
[1772581885529,3.79476752,1985.5,1985.0,3.71889767]
[1772581887323,3.79476752,1985.5,1984.9,0.25189]
[1772581887523,3.79476752,1985.3,1984.9,3.97078767]
[1772581887925,3.79476752,1985.3,1984.7,3.71889767]
[1772581891234,3.79476752,1985.3,1984.5,3.71889767]
[1772581891933,3.79476752,1985.1,1984.5,3.71889767]
[1772581894041,3.79476752,1984.9,1984.5,3.71889767]
[1772581894334,3.79888452,1984.9,1984.5,3.71889767]
[1772581894542,3.79888452,1984.9,1984.4,3.72378113]
[1772581895243,3.79476752,1985.2,1984.4,3.97572113]
[1772581895440,6.34136855,1985.1,1984.4,3.97572113]
[1772581895941,10.13613607,1985.1,1984.4,3.97572113]
[1772581896140,3.79476752,1985.0,1984.4,3.97572113]
[1772581903046,3.8009684,1985.1,1984.4,3.97572113]
[1772581903243,10.13040062,1985.0,1984.4,3.97572113]
[1772581903444,3.79476752,1985.0,1984.4,3.97572113]
[1772581904543,3.79476752,1985.4,1984.4,3.97572113]
[1772581904738,6.33693612,1985.3,1984.4,3.97572113]
[1772581904939,3.79476752,1985.5,1984.4,3.97572113]
[1772581905139,10.13167841,1985.4,1984.4,3.97572113]
[1772581905342,6.33691089,1985.3,1984.4,3.97572113]
[1772581905544,6.34187786,1985.3,1984.4,3.97572113]
[1772581905745,0.00496697,1985.3,1984.4,3.97572113]
[1772581905939,6.34237835,1985.3,1984.4,3.97572113]
[1772581906141,3.79973449,1985.3,1984.4,3.97572113]
[1772581908050,0.00496697,1985.3,1984.4,3.97572113]
[1772581908746,0.00496697,1985.3,1984.6,3.69078596]
[1772581908942,6.34488845,1985.3,1984.6,3.69078596]
[1772581910555,10.2495099,1985.3,1984.6,3.69078596]
[1772581910757,3.90958842,1985.3,1984.6,3.69078596]
[1772581918565,3.90462145,1985.1,1984.5,12.98778596]
[1772581918766,3.90462145,1985.1,1984.4,3.69566942]
[1772581920866,10.01996697,1985.3,1984.4,3.94761942]
[1772581920867,3.90958842,1985.3,1984.4,3.94761942]
[1772581921062,3.90462145,1985.1,1984.5,3.69078596]
[1772581921871,3.90958842,1985.3,1984.5,3.69078596]
[1772581922271,0.00496697,1985.3,1984.5,5.77021832]
[1772581922473,0.00496697,1985.3,1984.6,3.69078596]
[1772581924376,8.12371062,1986.0,1985.0,3.69078596]
[1772581924568,16.33405494,1986.2,1985.3,3.69078596]
[1772581924569,8.12371062,1986.2,1985.3,3.69078596]
[1772581924767,6.33632829,1986.1,1985.3,3.69078596]
[1772581925071,10.24094974,1986.1,1985.3,3.69078596]
[1772581925269,3.91040051,1986.1,1985.3,3.69078596]
[1772581925473,3.90462145,1985.9,1985.3,3.69078596]
[1772581927074,3.91040051,1986.1,1985.3,3.69078596]
[1772581927275,3.90462145,1985.9,1985.3,3.69078596]
[1772581929071,3.91040051,1986.1,1985.3,3.69078596]
[1772581933279,0.00577906,1986.1,1985.3,3.69078596]
[1772581934072,3.90462145,1986.4,1985.5,3.69078596]
[1772581934377,3.90462145,1986.4,1985.7,3.69078596]
[1772581935178,3.91009638,1986.4,1985.7,3.69078596]
[1772581936875,3.91009638,1986.4,1985.4,3.69078596]
[1772581939176,4.16179638,1986.4,1985.3,12.89883534]
[1772581939378,4.16179638,1986.4,1983.9,6.19949]
[1772581939379,3.6731342,1986.2,1984.9,3.58783534]
[1772581939584,3.9248842,1986.1,1984.9,3.58783534]
[1772581939882,3.6731342,1985.8,1984.9,3.58783534]
[1772581941478,3.6731342,1985.6,1984.9,3.58783534]
[1772581952992,3.6731342,1985.4,1984.5,3.58783534]
[1772581953390,3.6731342,1985.2,1984.5,3.58783534]
[1772581966499,3.6731342,1985.0,1984.5,3.58783534]
[1772581966701,3.67941062,1985.0,1984.5,3.58783534]
[1772581969303,0.00627642,1985.0,1984.5,3.58783534]
[1772581971305,3.66466295,1985.0,1984.5,3.58783534]
[1772581975212,0.00627642,1985.0,1984.5,3.58783534]
[1772581975708,3.66466295,1985.0,1984.5,3.58783534]
[1772581981115,6.27614826,1984.9,1984.5,3.58783534]
[1772581983214,5.48664101,1984.8,1984.4,0.00488346]
[1772581983412,3.65838653,1984.5,1984.2,3.58391937]
[1772581983717,3.65838653,1984.3,1983.8,3.58391937]
[1772581984319,3.65838653,1984.3,1983.8,3.58852899]
[1772581985418,1.82825448,1984.4,1983.8,3.58852899]
[1772581985620,11.95025448,1984.6,1983.8,3.58852899]
[1772581985920,6.32365114,1984.5,1984.0,3.58391937]
[1772581986618,3.65838653,1984.7,1984.0,3.58391937]
[1772581986919,6.32007437,1984.6,1984.0,3.58391937]
[1772581987315,1.88920043,1984.6,1984.1,3.58391937]
[1772581987517,3.65838653,1984.9,1984.1,3.58391937]
[1772581989922,3.65838653,1984.7,1984.1,3.58391937]
[1772581999930,3.76453228,1984.9,1984.2,3.52413611]
[1772582005840,3.76453228,1984.7,1984.2,3.52413611]
[1772582006538,3.76453228,1984.7,1984.1,0.25198]
[1772582006733,3.76453228,1984.5,1984.1,3.52413611]
[1772582009239,3.76453228,1984.5,1983.9,3.52413611]
[1772582013447,3.76453228,1984.2,1983.4,3.52413611]
[1772582013743,3.76453228,1983.9,1982.7,3.52413611]
[1772582013946,3.76453228,1983.6,1982.7,3.52413611]
[1772582014342,4.45146635,1984.1,1982.9,3.52413611]
[1772582014544,4.45146635,1984.1,1982.9,3.52855122]
[1772582014545,3.76453228,1983.7,1982.9,3.52855122]
[1772582020555,4.01657228,1983.7,1982.9,0.00441511]
[1772582020854,3.76453228,1983.5,1982.9,0.00441511]
[1772582021257,3.76453228,1983.5,1982.9,3.52855122]
[1772582021857,0.00637051,1984.1,1982.9,3.52855122]
[1772582022056,3.76453228,1984.0,1982.9,3.52855122]
[1772582022855,3.76453228,1984.0,1983.0,3.52413611]
[1772582035268,3.51362183,1983.8,1983.0,3.52413611]
[1772582038366,3.51362183,1983.6,1982.9,0.00441511]
[1772582038774,3.51362183,1983.6,1982.9,3.6037625]
[1772582043372,3.51362183,1983.8,1983.1,3.59934739]
[1772582047384,3.51362183,1983.8,1983.0,2.65198082]
[1772582055386,3.51362183,1983.6,1982.9,0.25655511]
[1772582055586,3.51362183,1983.6,1982.9,0.00441511]
[1772582057390,9.77477971,1983.5,1982.9,0.00441511]
[1772582057590,3.51362183,1983.3,1982.2,2.64390751]
[1772582058394,3.80965247,1983.1,1982.2,2.64390751]
[1772582058595,3.80965247,1983.1,1982.2,2.64809172]
[1772582059190,3.65439769,1982.9,1982.2,0.00418421]
[1772582059488,6.25085441,1982.8,1982.2,0.00418421]
[1772582059694,3.65439769,1982.7,1982.0,2.65257541]
[1772582060592,3.65899682,1982.7,1982.1,0.25225]
[1772582060799,0.00459913,1982.7,1982.2,2.72398379]
[1772582060999,3.65899682,1982.7,1982.2,2.72398379]
[1772582061291,0.00459913,1982.7,1982.2,2.72398379]
[1772582062702,3.65439769,1982.8,1982.2,2.72398379]
[1772582063003,3.65439769,1983.3,1982.2,2.72398379]
[1772582063203,3.65439769,1983.1,1982.2,2.72398379]
[1772582063605,3.6606797,1983.1,1982.2,2.72398379]
[1772582064302,3.6606797,1983.1,1982.4,2.72374465]
[1772582068410,3.6606797,1983.1,1982.0,0.005458]
[1772582068411,3.9128097,1983.1,1982.0,0.005458]
[1772582068610,3.65439769,1982.9,1982.0,0.005458]
[1772582069008,3.65439769,1982.9,1981.2,8.03733547]
[1772582069009,3.65439769,1982.8,1981.6,2.65952855]
[1772582070016,3.65439769,1982.8,1981.6,2.66404216]
[1772582070513,3.65439769,1982.8,1981.8,2.65562915]
[1772582070720,3.65439769,1982.8,1982.0,2.65562915]
[1772582071218,3.65439769,1982.8,1981.6,2.658896]
[1772582073319,3.65439769,1982.8,1981.8,2.45370296]
[1772582074410,3.65439769,1982.8,1982.0,2.44949454]
[1772582074714,3.65439769,1982.8,1982.2,2.44949454]
[1772582074915,3.65439769,1983.0,1982.2,2.44949454]
[1772582081220,0.00628201,1983.1,1982.4,2.25915843]
[1772582081221,3.6606797,1983.1,1982.4,2.25915843]
[1772582081414,0.00628201,1983.1,1982.6,2.25915843]
[1772582083625,3.6606797,1983.1,1982.6,2.25915843]
[1772582087129,3.6606797,1983.1,1982.5,0.25219]
[1772582087427,3.6606797,1983.1,1982.5,2.42369925]
[1772582092632,3.6606797,1983.1,1982.6,2.15918819]
[1772582093934,3.6606797,1983.1,1982.5,2.08337893]
[1772582094430,3.6606797,1983.1,1982.5,4.24340189]
[1772582095135,3.6606797,1983.1,1982.6,2.16006869]
[1772582095335,3.6606797,1983.1,1982.5,2.41225869]
[1772582100246,3.6606797,1983.1,1982.6,2.15946084]
[1772582101324,3.6606797,1983.1,1982.5,2.36314687]
[1772582101833,3.6606797,1983.1,1982.5,0.25219]
[1772582102034,3.6606797,1983.1,1982.2,2.10650568]
[1772582102238,3.54511705,1982.9,1982.2,2.10650568]
[1772582103339,3.54511705,1982.9,1982.1,9.45924]
[1772582103529,3.50211705,1982.9,1982.1,11.57608464]
[1772582103929,3.50211705,1982.9,1982.2,2.15542688]
[1772582106339,3.50211705,1982.9,1982.3,2.18910217]
[1772582107838,3.50211705,1982.9,1982.2,1.83118893]
[1772582108138,3.50211705,1982.9,1982.1,11.64887145]
[1772582108435,3.50211705,1982.9,1982.4,2.18363145]
[1772582112643,3.50211705,1982.9,1982.3,2.37975732]
[1772582118443,3.50211705,1982.9,1982.3,0.25222]
[1772582118648,3.50211705,1982.9,1982.1,9.213]
[1772582119050,3.57116704,1982.7,1982.0,2.1043197]
[1772582119350,3.57116704,1982.7,1982.0,11.3273197]
[1772582122352,3.57116704,1982.7,1981.9,4.28044249]
[1772582122753,3.57116704,1982.7,1982.0,2.20150329]
[1772582124653,3.57116704,1982.9,1982.2,2.1924636]
[1772582126856,3.57116704,1982.9,1982.0,2.19854746]
[1772582127750,3.57116704,1982.9,1982.1,1.83118893]
[1772582127958,3.57116704,1982.9,1982.2,2.19862764]
[1772582130757,3.57116704,1982.9,1982.0,2.172127]
[1772582130957,3.57116704,1982.7,1982.0,2.172127]
[1772582132059,3.57116704,1982.9,1982.3,2.16318926]
[1772582132259,3.57116704,1982.9,1982.3,0.25222]
[1772582132461,3.57116704,1982.9,1981.9,2.08344893]
[1772582132661,3.57116704,1982.9,1982.0,11.41618926]
[1772582132861,3.57116704,1982.9,1982.1,2.1594947]
[1772582134658,3.57116704,1982.9,1982.0,9.253]
[1772582135161,3.57116704,1982.9,1982.0,11.44390249]
[1772582136762,3.57116704,1982.9,1982.1,2.18755515]
[1772582137263,3.57116704,1982.9,1982.0,9.253]
[1772582137467,3.57116704,1982.7,1982.0,9.253]
[1772582140370,3.57116704,1982.7,1981.9,0.25226]
[1772582140972,3.57116704,1982.5,1981.7,11.43567012]
[1772582141171,3.57116704,1982.5,1981.7,9.266]
[1772582142472,3.57116704,1982.5,1981.7,11.42831097]
[1772582143573,3.57116704,1982.5,1981.6,2.16627236]
[1772582143771,3.57116704,1982.5,1981.6,0.00451361]
[1772582144175,3.57116704,1982.5,1981.6,2.15903274]
[1772582145069,3.57116704,1982.5,1981.6,0.00451361]
[1772582145275,3.82339704,1982.2,1981.2,2.14390907]
[1772582145576,3.57116704,1982.0,1981.2,2.14390907]
[1772582145772,5.403273,1982.0,1980.8,2.14400563]
[1772582145977,3.57116704,1981.9,1980.8,2.14400563]
[1772582146177,3.57116704,1981.9,1980.8,2.15022033]
[1772582147175,3.57116704,1981.9,1981.0,2.16093847]
[1772582156376,3.52882746,1981.8,1980.8,2.41246676]
[1772582165082,3.52882746,1981.8,1981.1,1.66159718]
[1772582165383,3.52882746,1981.8,1981.1,1.91395718]
[1772582165787,3.52882746,1982.4,1981.1,1.91395718]
[1772582165984,3.52882746,1982.2,1981.1,1.91395718]
[1772582166484,3.52882746,1982.2,1981.4,1.90778325]
[1772582166685,3.52882746,1982.2,1981.5,1.65545325]
[1772582168986,3.52882746,1982.2,1981.7,1.53499913]
[1772582169785,4.19461003,1982.8,1981.9,1.53549189]
[1772582169786,3.52882746,1982.6,1981.9,1.53549189]
[1772582170690,3.52882746,1982.6,1981.8,1.78178648]
[1772582177987,3.52882746,1982.6,1982.1,1.39853232]
[1772582184996,3.52882746,1982.6,1982.0,0.25226]
[1772582185295,3.52882746,1982.6,1982.0,1.47279119]
[1772582187193,3.52882746,1982.6,1982.0,0.25226]
[1772582189200,3.52882746,1982.6,1981.7,1.45426058]
[1772582191398,3.52882746,1982.6,1981.9,1.47976678]
[1772582193107,3.52882746,1982.6,1981.8,1.72269217]
[1772582198996,1.83241282,1982.3,1981.5,1.4188387]
[1772582199204,3.19621433,1982.2,1981.5,1.4188387]
[1772582199403,3.19621433,1982.2,1981.4,10.8901687]
[1772582201206,4.41053786,1982.9,1981.8,1.40435037]
[1772582201207,3.19621433,1982.6,1981.8,1.40435037]
[1772582201505,3.19621433,1982.4,1981.8,1.40435037]
[1772582201804,3.19621433,1982.3,1981.6,1.40435037]
[1772582211011,3.19621433,1982.3,1981.8,1.33347106]
[1772582213008,3.26226694,1982.7,1982.0,1.87655927]
[1772582214209,3.26226694,1982.7,1982.2,1.91082123]
[1772582214410,3.26226694,1982.7,1982.2,1.91467173]
[1772582215914,3.26226694,1982.9,1982.4,1.9201248]
[1772582217116,3.26226694,1983.0,1982.4,1.9201248]
[1772582217615,3.26226694,1983.0,1982.6,3.17130032]
[1772582217816,3.26854895,1983.1,1982.6,3.17130032]
[1772582218819,0.00628201,1983.1,1982.6,3.17130032]
[1772582219207,3.26854895,1983.1,1982.6,3.17130032]
[1772582220815,0.00628201,1983.1,1982.6,3.17130032]
[1772582221014,0.00628201,1983.1,1982.8,3.42345032]
[1772582221213,3.26226694,1983.5,1982.8,3.42345032]
[1772582222112,3.26598249,1983.5,1982.8,3.42345032]
[1772582223920,3.26226694,1983.1,1982.6,3.17130032]
[1772582227226,3.26226694,1983.3,1982.7,1.83241282]
[1772582227422,3.26226694,1983.3,1982.8,3.17130032]
[1772582227726,3.26226694,1983.1,1982.6,3.42347032]
[1772582228423,1.83241282,1983.0,1982.5,9.223]
[1772582228733,3.26226694,1982.9,1982.5,12.39430032]
[1772582229125,3.26226694,1982.9,1982.6,3.17130032]
[1772582229421,3.26226694,1982.9,1982.5,12.39430032]
[1772582229924,3.26226694,1983.2,1982.6,3.17130032]
[1772582230227,3.26226694,1983.4,1982.8,3.17130032]
[1772582230525,3.26226694,1983.4,1983.0,3.17130032]
[1772582234528,3.26226694,1983.4,1982.9,9.242]
[1772582234729,3.26226694,1983.4,1982.9,12.41330032]
[1772582235032,3.26226694,1983.4,1983.0,3.17130032]
[1772582238329,3.26226694,1983.4,1982.9,12.417101]
[1772582238828,3.26226694,1983.4,1982.9,9.242]
[1772582239031,3.15829323,1983.3,1982.9,5.78964745]
[1772582239221,3.15829323,1983.3,1982.9,5.45279417]
[1772582239426,3.15829323,1983.3,1982.9,4.38113722]
[1772582242831,3.15829323,1983.3,1982.7,3.22490806]
[1772582243833,1.83241282,1983.2,1982.7,3.22490806]
[1772582244133,3.15829323,1983.1,1982.7,3.22490806]
[1772582245429,1.83241282,1983.0,1982.4,3.22490806]
[1772582245634,0.25578555,1983.5,1982.3,3.22490806]
[1772582245635,3.15829323,1982.7,1982.3,3.22490806]
[1772582247828,3.15829323,1982.7,1982.2,3.22875856]
[1772582270152,3.15829323,1982.7,1982.2,0.0038505]
[1772582270853,3.15829323,1982.7,1982.2,3.47527104]